bitfinex-derivatives/quotes_SOLF0:USTF0_20250613
["timestamp","ask_amount","ask_price","bid_price","bid_amount"]
[1749829956679,7.24120783,147.44,147.35,46.9975837]
[1749829956882,0.04565826,147.41,147.39,10.4575837]
[1749829957077,0.04969241,147.41,147.39,47.0411776]
[1749829957277,43.3144,147.5,147.4,2.3323]
[1749829957483,6.778,147.47,147.4,2.3323]
[1749829957980,6.7775,147.48,147.45,6.7787]
[1749829958180,0.04404379,147.48,147.45,0.04949577]
[1749829958581,6.82174379,147.48,147.45,6.82819577]
[1749829958784,0.04404379,147.48,147.45,0.04949577]
[1749829959083,6.82184379,147.48,147.45,0.04949577]
[1749829960191,0.04404379,147.48,147.45,0.04949577]
[1749829960883,6.7779,147.47,147.45,0.04949577]
[1749829961083,0.04404379,147.48,147.45,0.04949577]
[1749829961387,6.82174379,147.48,147.45,6.82819577]
[1749829961782,6.82174379,147.48,147.45,0.04949577]
[1749829961983,0.04404379,147.48,147.45,0.04949577]
[1749829964191,10.4575837,147.47,147.45,0.04949577]
[1749829964494,6.7783,147.46,147.45,0.04949577]
[1749829964994,11.52879514,147.46,147.45,0.04949577]
[1749829965491,4.75049514,147.46,147.45,0.04949577]
[1749829965697,4.75049514,147.46,147.39,36.54]
[1749829965997,10.4575837,147.43,147.33,4.5756]
[1749829966186,10.4575837,147.43,147.33,41.1156]
[1749829966390,6.7811,147.41,147.37,6.7822]
[1749829966584,36.54,147.42,147.33,41.1156]
[1749829966792,0.04907334,147.39,147.36,0.04388382]
[1749829966993,0.04907334,147.39,147.37,6.7821]
[1749829967395,0.04907334,147.39,147.36,0.04388382]
[1749829967693,0.04907334,147.39,147.36,6.82648382]
[1749829967989,0.04907334,147.39,147.36,0.04388382]
[1749829968197,6.7821,147.38,147.36,0.04388382]
[1749829968389,0.04907334,147.39,147.36,0.04388382]
[1749829969597,0.04907334,147.39,147.37,6.7822]
[1749829969784,0.04907334,147.39,147.36,0.04388382]
[1749829970188,6.83067334,147.39,147.36,6.82658382]
[1749829970588,0.04907334,147.39,147.36,0.04388382]
[1749829970787,38.7535,147.45,147.37,36.52]
[1749829971096,2.2895,147.47,147.37,36.52]
[1749829971097,2.2895,147.47,147.38,10.4575837]
[1749829971298,2.2895,147.47,147.38,12.6458837]
[1749829971494,2.2895,147.47,147.39,2.2655]
[1749829971892,0.0462983,147.44,147.43,6.7794]
[1749829974397,0.0462983,147.44,147.42,0.05057483]
[1749829976099,0.0462983,147.44,147.42,6.83047483]
[1749829976300,0.0462983,147.44,147.42,0.05057483]
[1749829976798,0.0462983,147.44,147.42,6.83077483]
[1749829977100,0.0462983,147.44,147.42,0.05057483]
[1749829977497,0.0462983,147.44,147.43,6.7797]
[1749829977693,0.0462983,147.44,147.42,0.05057483]
[1749829978199,6.8257983,147.44,147.42,0.05057483]
[1749829978402,0.0462983,147.44,147.42,0.05057483]
[1749829978905,0.0462983,147.44,147.43,6.7797]
[1749829979099,0.0462983,147.44,147.42,0.05057483]
[1749829979605,6.8257983,147.44,147.42,0.05057483]
[1749829979896,0.0462983,147.44,147.42,0.05057483]
[1749829980292,6.7797,147.43,147.42,0.05057483]
[1749829980498,0.0462983,147.44,147.42,0.05057483]
[1749829981497,0.0462983,147.44,147.43,6.7797]
[1749829981900,0.0462983,147.44,147.42,6.83037483]
[1749829982109,0.0462983,147.44,147.42,0.05057483]
[1749829982406,0.0462983,147.44,147.42,6.83047483]
[1749829982997,0.0462983,147.44,147.43,6.7797]
[1749829983302,0.0462983,147.44,147.42,0.05057483]
[1749829983501,0.0462983,147.44,147.43,6.7797]
[1749829983701,0.0462983,147.44,147.42,0.05057483]
[1749829984108,6.8256983,147.44,147.42,0.05057483]
[1749829984307,0.0462983,147.44,147.42,0.05057483]
[1749829986105,0.0462983,147.44,147.43,6.7797]
[1749829994505,36.52,147.49,147.47,6.7779]
[1749829994809,6.7772,147.49,147.42,2.2884]
[1749829995212,2.2072,147.51,147.46,6.7781]
[1749829995414,6.7774,147.48,147.46,6.7781]
[1749829995712,0.04712122,147.48,147.46,0.04297483]
[1749829996301,42.8195419,147.55,147.46,0.04297483]
[1749829996503,10.26395693,147.54,147.45,46.9775837]
[1749829996704,12.72462156,147.53,147.45,36.52]
[1749829996904,20.72154063,147.52,147.45,36.52]
[1749829997104,5.54066904,147.51,147.49,6.7767]
[1749829997306,0.04619532,147.51,147.49,6.82757741]
[1749829998004,0.04619532,147.51,147.49,0.05087741]
[1749829999406,0.04619532,147.51,147.49,6.82757741]
[1749830000813,6.82239532,147.51,147.49,0.05087741]
[1749830001409,0.04619532,147.51,147.5,6.7765]
[1749830001614,0.04619532,147.51,147.49,0.05087741]
[1749830002004,6.7765,147.5,147.49,0.05087741]
[1749830002216,0.04619532,147.51,147.49,0.05087741]
[1749830002719,0.04619532,147.51,147.49,6.82757741]
[1749830003220,0.04619532,147.51,147.5,6.7765]
[1749830004319,0.04619532,147.51,147.49,0.05087741]
[1749830004722,6.82249532,147.51,147.49,0.05087741]
[1749830005623,6.7765,147.5,147.49,0.05087741]
[1749830005919,0.04619532,147.51,147.49,0.05087741]
[1749830006310,6.82249532,147.51,147.49,0.05087741]
[1749830007619,6.7765,147.5,147.49,0.05087741]
[1749830007819,49.34328502,147.51,147.41,38.7866]
[1749830008028,6.40854485,147.44,147.41,36.48]
[1749830008232,13.18814485,147.44,147.41,36.48]
[1749830008434,6.40854485,147.46,147.41,36.48]
[1749830008931,0.05125748,147.45,147.42,0.04452777]
[1749830009134,6.83025748,147.45,147.42,6.82432777]
[1749830009536,6.83025748,147.45,147.42,0.04452777]
[1749830010034,0.05125748,147.45,147.43,6.7795]
[1749830010334,0.05125748,147.45,147.42,0.04452777]
[1749830010728,0.05125748,147.45,147.44,6.7793]
[1749830010931,0.05125748,147.45,147.42,0.04452777]
[1749830011330,6.83025748,147.45,147.42,0.04452777]
[1749830011531,0.05125748,147.45,147.42,0.04452777]
[1749830011931,0.05125748,147.45,147.44,6.7793]
[1749830015043,36.48,147.5,147.42,12.84306545]
[1749830015336,6.7767,147.5,147.42,12.84306545]
[1749830015533,6.7767,147.5,147.47,6.7776]
[1749830015738,6.7769,147.5,147.47,6.7776]
[1749830016038,0.0461191,147.5,147.47,0.04492349]
[1749830016837,6.8229191,147.5,147.47,6.82252349]
[1749830017335,0.0461191,147.5,147.48,6.7773]
[1749830017637,0.0461191,147.5,147.47,0.04492349]
[1749830018027,0.0461191,147.5,147.49,6.777]
[1749830018229,2.2749,147.55,147.47,0.04492349]
[1749830018438,5.53613708,147.54,147.48,10.44573768]
[1749830018638,6.7744,147.55,147.49,36.48]
[1749830018928,6.7744,147.55,147.53,6.7751]
[1749830019325,6.82035886,147.55,147.53,6.81802435]
[1749830019525,6.7747,147.54,147.53,0.04292435]
[1749830019730,0.04595886,147.55,147.53,0.04292435]
[1749830020137,12.316164,147.54,147.53,0.04292435]
[1749830020332,6.7747,147.54,147.53,0.04292435]
[1749830021434,0.04595886,147.55,147.53,6.81802435]
[1749830021940,0.04595886,147.55,147.53,0.04292435]
[1749830022140,0.04595886,147.55,147.54,6.7747]
[1749830023138,0.04595886,147.55,147.53,0.04292435]
[1749830023443,6.7747,147.54,147.53,0.04292435]
[1749830023630,6.7747,147.54,147.49,36.48]
[1749830023631,5.54012593,147.54,147.49,6.7767]
[1749830023837,6.776,147.52,147.46,36.48]
[1749830024043,10.44237016,147.53,147.46,36.48]
[1749830024237,4.4941,147.54,147.46,36.48]
[1749830024634,0.04788971,147.51,147.49,0.04956359]
[1749830025542,6.82418971,147.51,147.49,0.04956359]
[1749830025743,0.04788971,147.51,147.49,0.04956359]
[1749830026044,6.7765,147.5,147.49,0.04956359]
[1749830027440,6.7778,147.48,147.43,36.48]
[1749830027634,6.7778,147.48,147.45,6.7786]
[1749830028034,6.7771,147.49,147.46,6.778]
[1749830028436,6.82551709,147.49,147.46,0.04945787]
[1749830028633,0.04841709,147.49,147.46,0.04945787]
[1749830029237,0.04841709,147.49,147.47,6.7776]
[1749830029433,0.04841709,147.49,147.46,0.04945787]
[1749830029843,5.55581038,147.48,147.46,0.04945787]
[1749830030033,6.7774,147.48,147.46,0.04945787]
[1749830030236,10.49078725,147.49,147.46,0.04945787]
[1749830030444,5.55581622,147.48,147.46,0.04945787]
[1749830030641,6.7779,147.47,147.46,0.04945787]
[1749830030939,12.3345917,147.47,147.46,0.04945787]
[1749830032739,12.3345917,147.47,147.4,36.44]
[1749830032740,52.43906186,147.47,147.4,36.44]
[1749830032941,7.8011917,147.46,147.4,36.44]
[1749830033239,5.5566917,147.45,147.4,36.44]
[1749830033439,2.2445,147.46,147.4,36.44]
[1749830033635,0.04589868,147.44,147.42,6.8311678]
[1749830033843,0.04589868,147.44,147.42,0.0509678]
[1749830034447,6.7797,147.43,147.42,0.0509678]
[1749830034646,0.04589868,147.44,147.42,6.8311678]
[1749830035152,6.82519868,147.44,147.42,6.8311678]
[1749830035850,0.04589868,147.44,147.42,6.8311678]
[1749830036944,6.82519868,147.44,147.42,6.8311678]
[1749830037343,6.82519868,147.44,147.42,0.0509678]
[1749830037555,6.7797,147.43,147.42,0.0509678]
[1749830038050,6.82539868,147.44,147.42,0.0509678]
[1749830038249,0.04589868,147.44,147.42,0.0509678]
[1749830038651,0.04589868,147.44,147.42,6.8309678]
[1749830039149,0.04589868,147.44,147.42,0.0509678]
[1749830039550,0.04589868,147.44,147.42,6.8308678]
[1749830040243,6.82519868,147.44,147.42,0.0509678]
[1749830041239,0.04589868,147.44,147.42,0.0509678]
[1749830041438,36.44,147.5,147.42,0.0509678]
[1749830041648,5.52047754,147.49,147.43,10.44237016]
[1749830041946,36.44,147.53,147.45,10.44237016]
[1749830042151,36.44,147.53,147.46,36.44]
[1749830042345,0.04400826,147.51,147.5,6.7762]
[1749830043449,0.04400826,147.51,147.49,6.7768]
[1749830043649,0.04400826,147.51,147.48,0.04385559]
[1749830043857,0.04400826,147.51,147.5,6.7765]
[1749830044859,0.04400826,147.51,147.48,0.04385559]
[1749830045445,0.04400826,147.51,147.49,6.7767]
[1749830046261,0.04400826,147.51,147.48,6.82105559]
[1749830046955,0.04400826,147.51,147.48,0.04385559]
[1749830047357,0.04400826,147.51,147.48,6.82115559]
[1749830047750,0.04400826,147.51,147.48,0.04385559]
[1749830049057,0.04400826,147.51,147.49,6.777]
[1749830050461,0.04400826,147.51,147.5,6.7765]
[1749830051470,0.04400826,147.51,147.49,6.7768]
[1749830051671,0.04400826,147.51,147.48,0.04385559]
[1749830052057,0.04400826,147.51,147.5,6.7765]
[1749830053267,0.04400826,147.51,147.49,6.7768]
[1749830053671,0.04400826,147.51,147.48,0.04385559]
[1749830055161,0.04400826,147.51,147.49,6.7767]
[1749830055761,0.04400826,147.51,147.5,6.7765]
[1749830057060,0.04400826,147.51,147.48,0.04385559]
[1749830057563,0.04400826,147.51,147.5,6.7765]
[1749830057771,0.04400826,147.51,147.48,0.04385559]
[1749830057968,0.04400826,147.51,147.49,6.7767]
[1749830058179,42.847907,147.5,147.42,38.6417]
[1749830058373,6.41386763,147.47,147.42,38.6417]
[1749830058678,13.19216763,147.47,147.43,6.7793]
[1749830058876,6.41386763,147.47,147.43,6.7793]
[1749830059378,6.83021181,147.46,147.44,0.04446378]
[1749830060179,6.83021181,147.46,147.44,6.82366378]
[1749830060377,6.7788,147.45,147.44,0.04446378]
[1749830060771,11.95921537,147.45,147.39,43.2212]
[1749830061080,13.19396763,147.43,147.39,43.2212]
[1749830061375,10.45723088,147.45,147.39,6.7812]
[1749830061774,0.0517926,147.43,147.41,0.04611568]
[1749830062571,0.0517926,147.43,147.42,10.45723088]
[1749830062775,0.0517926,147.43,147.42,17.23743088]
[1749830063068,36.4,147.49,147.42,10.45723088]
[1749830063271,6.7793,147.44,147.4,36.4]
[1749830063473,10.45723088,147.46,147.4,36.4]
[1749830063672,10.45723088,147.46,147.38,2.2873]
[1749830063880,0.04666442,147.43,147.41,0.04582849]
[1749830065071,6.82636442,147.43,147.41,0.04582849]
[1749830065277,0.04666442,147.43,147.41,0.04582849]
[1749830065785,6.7802,147.42,147.41,0.04582849]
[1749830065972,0.04666442,147.43,147.37,36.4]
[1749830066375,6.7809,147.41,147.37,43.1821]
[1749830066579,6.7809,147.41,147.37,36.4]
[1749830067075,0.049803,147.4,147.38,0.04985719]
[1749830067280,10.45881948,147.39,147.33,1.17982099]
[1749830067484,10.45881948,147.37,147.31,43.186]
[1749830067777,46.85881948,147.37,147.29,4.5631]
[1749830068372,0.05126157,147.34,147.32,0.04828573]
[1749830068877,6.83536157,147.34,147.32,0.04828573]
[1749830070275,0.05126157,147.34,147.28,37.58124268]
[1749830070683,6.7851,147.32,147.29,6.786]
[1749830070882,6.7851,147.32,147.28,37.58124268]
[1749830071083,4.3909,147.38,147.29,10.45881948]
[1749830071280,0.04356976,147.35,147.33,6.784]
[1749830071777,0.04356976,147.35,147.34,6.7839]
[1749830076587,0.04356976,147.35,147.33,6.7839]
[1749830076790,0.04356976,147.35,147.32,36.46571539]
[1749830077882,0.04356976,147.35,147.34,6.7839]
[1749830078084,0.04356976,147.35,147.32,36.46571539]
[1749830078488,0.04356976,147.35,147.34,6.7839]
[1749830081779,36.42,147.42,147.32,36.46571539]
[1749830081985,36.42,147.42,147.33,10.45881948]
[1749830082287,4.5028,147.43,147.35,10.45881948]
[1749830082486,4.5028,147.43,147.36,36.42]
[1749830082687,6.7807,147.41,147.36,36.42]
[1749830082887,0.04781479,147.41,147.38,0.04493114]
[1749830083185,6.7813,147.4,147.38,0.04493114]
[1749830083680,0.04781479,147.41,147.38,0.04493114]
[1749830083887,6.7815,147.39,147.38,0.04493114]
[1749830085194,6.4176825,147.39,147.34,36.42]
[1749830085589,6.4176825,147.39,147.34,43.2037]
[1749830085796,6.7824,147.38,147.34,43.2037]
[1749830086195,6.83232431,147.37,147.35,0.04673637]
[1749830086493,0.04992431,147.37,147.35,0.04673637]
[1749830086999,6.46760681,147.37,147.31,36.42]
[1749830087198,6.46760681,147.37,147.32,6.7846]
[1749830087791,6.46760681,147.37,147.31,43.205]
[1749830087993,6.46760681,147.37,147.33,0.04523021]
[1749830088194,42.88760681,147.37,147.33,0.04523021]
[1749830090597,6.4176825,147.35,147.33,0.04523021]
[1749830091399,6.7838,147.34,147.33,0.04523021]
[1749830093896,6.7851,147.32,147.28,37.56124268]
[1749830094099,6.4176825,147.33,147.28,44.34764268]
[1749830094298,6.4176825,147.33,147.28,37.56124268]
[1749830094805,0.04620908,147.32,147.29,0.04338344]
[1749830095301,6.7853,147.31,147.29,0.04338344]
[1749830095693,0.04620908,147.32,147.29,0.04338344]
[1749830095896,6.7856,147.3,147.29,0.04338344]
[1749830100205,6.4176825,147.31,147.25,36.38]
[1749830100412,6.4176825,147.29,147.23,549.33969448]
[1749830100706,6.7868,147.28,147.25,6.7878]
[1749830100902,6.4176825,147.29,147.23,158.93969448]
[1749830101108,6.4176825,147.25,147.2,6.7902]
[1749830101306,6.4176825,147.21,147.17,36.38]
[1749830101508,6.4176825,147.19,147.11,36.38]
[1749830101702,6.4176825,147.19,147.08,390.76]
[1749830101703,6.4176825,147.17,147.13,1.18238652]
[1749830101907,6.4176825,147.17,147.1,36.38]
[1749830102200,6.4176825,147.17,147.08,397.1776825]
[1749830102201,6.4176825,147.15,147.11,1.1826678]
[1749830102407,6.4176825,147.13,147.04,38.5865]
[1749830102606,36.38,147.15,146.99,6.4176825]
[1749830102607,6.46399659,147.1,146.99,6.4176825]
[1749830102804,42.8176825,147.1,147.05,6.7968]
[1749830102999,42.8176825,147.1,147.01,42.8176825]
[1749830103202,36.4,147.1,147.01,36.4]
[1749830103401,46.90534001,147.13,147.02,10.50534001]
[1749830103602,0.04302678,147.09,147.02,10.50534001]
[1749830103803,46.90534001,147.17,147.06,10.55498808]
[1749830104102,390.76,147.2,147.07,40.778]
[1749830104103,36.4,147.19,147.07,40.778]
[1749830104305,5.46189783,147.18,147.09,10.50534001]
[1749830104507,36.4,147.19,147.09,10.50534001]
[1749830104814,0.04392229,147.15,147.13,0.04465222]
[1749830105116,0.04392229,147.15,147.14,6.793]
[1749830106207,0.04392229,147.15,147.13,0.04465222]
[1749830108506,0.04392229,147.15,147.13,6.83795222]
[1749830108807,0.04392229,147.15,147.13,0.04465222]
[1749830109317,0.04392229,147.15,147.14,6.793]
[1749830111112,0.04392229,147.15,147.13,0.04465222]
[1749830114119,46.95571962,147.15,147.07,2.2176]
[1749830114316,46.91179733,147.15,147.07,2.2176]
[1749830114720,6.7936,147.13,147.09,6.795]
[1749830115108,6.7936,147.13,147.1,0.04645232]
[1749830115313,0.04866189,147.12,147.1,0.04645232]
[1749830116712,0.04866189,147.12,147.1,6.84105232]
[1749830117722,0.04866189,147.12,147.11,6.7944]
[1749830118215,0.04866189,147.12,147.1,6.84095232]
[1749830118716,0.04866189,147.12,147.1,0.04645232]
[1749830119316,0.04866189,147.12,147.1,6.84125232]
[1749830119517,0.04866189,147.12,147.1,0.04645232]
[1749830120724,0.04866189,147.12,147.1,6.84095232]
[1749830120925,0.04866189,147.12,147.1,0.04645232]
[1749830121315,0.04866189,147.12,147.1,6.84125232]
[1749830121723,0.04866189,147.12,147.1,0.04645232]
[1749830123021,0.04866189,147.12,147.11,6.7944]
[1749830123924,0.04866189,147.12,147.1,6.84105232]
[1749830124128,0.04866189,147.12,147.1,0.04645232]
[1749830124323,0.04866189,147.12,147.11,6.7944]
[1749830124522,0.04866189,147.12,147.1,0.04645232]
[1749830124921,0.04866189,147.12,147.11,6.7944]
[1749830125125,6.44065321,147.16,147.1,36.46645232]
[1749830125420,6.44065321,147.14,147.1,36.42]
[1749830125615,6.44065321,147.16,147.1,36.42]
[1749830126119,0.05147435,147.14,147.12,6.83731584]
[1749830127231,6.84447435,147.14,147.12,0.04371584]
[1749830128424,6.7934,147.13,147.12,0.04371584]
[1749830130228,42.91212756,147.14,147.07,6.7961]
[1749830130530,6.44065321,147.11,147.07,6.7961]
[1749830130728,36.42,147.1,146.96,6.786]
[1749830130936,40.1825,147.09,146.98,8.61225321]
[1749830131228,0.04514552,147.05,147.02,0.04868942]
[1749830131421,0.04514552,147.05,147.02,6.84708942]
[1749830131827,0.04514552,147.05,147.02,0.04868942]
[1749830132018,6.84234552,147.05,147.02,0.04868942]
[1749830133224,6.7977,147.04,147.02,0.04868942]
[1749830133616,0.04514552,147.05,147.02,0.04868942]
[1749830134331,6.48579873,147.05,147.02,0.04868942]
[1749830135424,13.23865321,147.03,147.02,0.04868942]
[1749830135828,6.44065321,147.03,146.97,38.02]
[1749830136026,6.44065321,147.03,146.98,6.8002]
[1749830136437,6.799,147.02,146.98,6.8002]
[1749830136628,6.44065321,147.03,146.97,44.8206]
[1749830136829,0.04828195,147.01,146.99,0.05071517]
[1749830137027,6.84758195,147.01,146.99,0.05071517]
[1749830137422,0.04828195,147.01,146.99,0.05071517]
[1749830137633,38.08828195,147.01,146.91,429.32]
[1749830137830,6.44065321,146.98,146.91,429.32]
[1749830138032,13.24125321,146.98,146.91,430.50405607]
[1749830138231,6.44065321,146.98,146.91,39.22405607]
[1749830138438,6.44065321,146.96,146.92,6.803]
[1749830138623,0.05116866,146.95,146.92,6.803]
[1749830138935,0.05116866,146.95,146.94,6.8022]
[1749830139137,0.05116866,146.95,146.91,38.04]
[1749830139534,0.05116866,146.95,146.89,4.4247]
[1749830139929,0.05116866,146.95,146.92,6.8028]
[1749830140131,0.05116866,146.95,146.89,4.4247]
[1749830140332,0.05116866,146.95,146.88,1.1843583]
[1749830140333,6.46078935,146.93,146.88,1.1843583]
[1749830140535,13.30728559,146.92,146.84,435.90078935]
[1749830140736,6.84649624,146.92,146.84,437.08536939]
[1749830140932,6.50398559,146.92,146.84,437.08536939]
[1749830141135,6.50398559,146.92,146.84,430.62458004]
[1749830141335,6.50398559,146.92,146.84,437.08536939]
[1749830141530,6.50398559,146.92,146.89,6.8043]
[1749830141736,6.50398559,146.92,146.84,437.08536939]
[1749830141928,6.50398559,146.92,146.87,6.8052]
[1749830142130,6.8046,146.89,146.84,39.22458004]
[1749830142334,6.46078935,146.9,146.84,39.22458004]
[1749830142335,0.04293858,146.88,146.84,39.22458004]
[1749830142540,0.04293858,146.88,146.84,38.04]
[1749830142735,0.04293858,146.88,146.82,45.0352]
[1749830144237,13.26698935,146.86,146.77,429.64]
[1749830144440,0.04765299,146.83,146.75,40.3717]
[1749830144639,0.04718839,146.8,146.75,46.83248935]
[1749830144834,0.04718839,146.8,146.79,6.8092]
[1749830145641,0.04718839,146.8,146.76,1.18544761]
[1749830145841,0.04718839,146.8,146.75,40.3717]
[1749830146237,0.04718839,146.8,146.74,5.75004761]
[1749830146833,0.04718839,146.8,146.78,6.8096]
[1749830147034,0.04718839,146.8,146.74,5.75004761]
[1749830147233,0.04718839,146.8,146.78,6.8093]
[1749830147439,0.04718839,146.8,146.74,1.18544761]
[1749830147943,0.04718839,146.8,146.76,6.8103]
[1749830148248,0.04718839,146.8,146.73,38.08]
[1749830148441,10.54521453,146.79,146.73,38.08]
[1749830148742,6.85388833,146.77,146.73,38.08]
[1749830148939,0.04368833,146.77,146.73,38.08]
[1749830150048,0.04368833,146.77,146.69,38.08]
[1749830150242,0.04718132,146.74,146.71,1.18577075]
[1749830150443,0.04718132,146.74,146.73,6.8119]
[1749830151145,0.04718132,146.74,146.73,44.9119]
[1749830151348,44.8887,146.8,146.73,55.46521453]
[1749830151542,10.54521453,146.82,146.73,38.1]
[1749830151949,10.54521453,146.8,146.73,38.1]
[1749830152246,0.04897807,146.78,146.75,0.04550192]
[1749830152641,6.85897807,146.78,146.75,0.04550192]
[1749830153151,0.04897807,146.78,146.75,0.04550192]
[1749830153745,0.04897807,146.78,146.76,6.8102]
[1749830155148,0.04897807,146.78,146.77,6.8101]
[1749830160047,0.04897807,146.78,146.75,0.04550192]
[1749830160553,0.04897807,146.78,146.76,6.8105]
[1749830160950,0.04897807,146.78,146.75,0.04550192]
[1749830161157,6.85867807,146.78,146.75,6.85630192]
[1749830161359,0.04897807,146.78,146.75,0.04550192]
[1749830162260,0.04897807,146.78,146.77,6.8101]
[1749830163146,38.1,146.83,146.75,0.04550192]
[1749830163556,6.8094,146.79,146.75,0.04550192]
[1749830163860,38.1,146.83,146.75,0.04550192]
[1749830164156,6.8094,146.79,146.76,6.8103]
[1749830164457,6.8094,146.79,146.76,6.86246279]
[1749830164667,10.55569298,146.77,146.66,2.74915737]
[1749830164962,10.55569298,146.75,146.67,6.786]
[1749830165152,10.55569298,146.74,146.66,2.74915737]
[1749830165349,6.47855662,146.73,146.66,2.74915737]
[1749830165558,6.47855662,146.73,146.66,41.70915737]
[1749830165858,0.04943929,146.71,146.68,0.04669453]
[1749830166160,0.04619381,146.71,146.68,0.04424178]
[1749830166861,0.04619381,146.71,146.69,6.8135]
[1749830167160,0.04619381,146.71,146.68,0.04424178]
[1749830167351,0.04619381,146.71,146.7,6.8133]
[1749830167549,43.4925,146.78,146.7,38.96]
[1749830167749,235.17144656,146.79,146.7,38.96]
[1749830167750,224.62133297,146.79,146.7,49.51011359]
[1749830167956,6.8093,146.79,146.73,6.786]
[1749830168152,38.96,146.81,146.73,6.786]
[1749830168360,38.96,146.81,146.74,38.96]
[1749830168666,0.04918961,146.79,146.76,0.04822569]
[1749830169162,6.85848961,146.79,146.76,0.04822569]
[1749830169347,0.04918961,146.79,146.76,0.04822569]
[1749830169759,6.85848961,146.79,146.76,0.04822569]
[1749830170060,0.04918961,146.79,146.76,0.04822569]
[1749830170460,6.85848961,146.79,146.76,6.85842569]
[1749830170763,6.85848961,146.79,146.76,0.04822569]
[1749830171258,0.04918961,146.79,146.76,0.04822569]
[1749830171559,0.04918961,146.79,146.78,6.8096]
[1749830171764,49.51011359,146.86,146.76,10.59833928]
[1749830172060,49.51011359,146.86,146.76,10.55011359]
[1749830172259,6.808,146.82,146.76,10.55011359]
[1749830172460,6.808,146.82,146.74,49.51011359]
[1749830172658,0.04722779,146.79,146.77,0.05001194]
[1749830172860,0.04833726,146.79,146.77,0.05095724]
[1749830173060,10.55011359,146.86,146.78,38.96]
[1749830173862,6.8066,146.85,146.78,38.96]
[1749830174065,0.04416559,146.83,146.8,0.05071008]
[1749830174361,0.04416559,146.83,146.81,6.8079]
[1749830174559,0.04416559,146.83,146.8,0.05071008]
[1749830174759,0.04416559,146.83,146.81,6.8082]
[1749830174958,0.04416559,146.83,146.8,0.05071008]
[1749830175262,38.96,146.9,146.8,0.05071008]
[1749830175462,6.8046,146.89,146.81,10.55011359]
[1749830175663,49.51011359,146.91,146.79,12.88871359]
[1749830175869,49.51011359,146.91,146.85,6.8063]
[1749830176160,6.8054,146.87,146.79,12.88871359]
[1749830176364,0.04503592,146.84,146.82,0.04491229]
[1749830176561,6.8052,146.88,146.82,0.04884348]
[1749830176864,0.04384217,146.86,146.84,0.04684575]
[1749830177264,0.04384217,146.86,146.85,6.8062]
[1749830178869,4.4879,146.92,146.84,0.04684575]
[1749830179058,4.4879,146.92,146.83,10.55011359]
[1749830179255,38.96,146.93,146.9,6.804]
[1749830179458,2.2446,146.95,146.86,38.96]
[1749830179665,5.42959918,146.94,146.86,38.96]
[1749830179966,0.04977023,146.92,146.9,6.8038]
[1749830180369,0.04977023,146.92,146.89,0.05100659]
[1749830180557,0.04977023,146.92,146.91,6.8036]
[1749830181069,11.3783,146.97,146.94,6.8018]
[1749830181263,5.45410111,146.96,146.94,6.8018]
[1749830181462,11.3783,146.97,146.94,6.8018]
[1749830181658,5.45407312,146.96,146.9,38.94]
[1749830182066,4.5772,146.97,146.9,38.94]
[1749830182268,0.049965,146.94,146.93,6.8022]
[1749830182568,0.049965,146.94,146.92,0.04773916]
[1749830182569,18.82745152,146.94,146.92,0.04773916]
[1749830182765,7.32952053,146.93,146.92,0.04773916]
[1749830182962,4.57823104,146.93,146.92,0.04773916]
[1749830183264,7.32958511,146.93,146.92,0.04773916]
[1749830183457,19.61205058,146.93,146.92,0.04773916]
[1749830183864,15.03362386,146.93,146.92,0.04773916]
[1749830184060,15.03374372,146.93,146.92,0.04773916]
[1749830184261,15.03374155,146.93,146.92,0.04773916]
[1749830184462,16.86089327,146.93,146.92,0.04773916]
[1749830184664,15.03374372,146.93,146.92,0.04773916]
[1749830184857,19.61246211,146.93,146.92,0.04773916]
[1749830185057,15.03376529,146.93,146.92,0.04773916]
[1749830185263,19.61219671,146.93,146.92,0.04773916]
[1749830186471,7.33122656,146.93,146.92,0.04773916]
[1749830186765,7.39681057,146.93,146.92,0.04773916]
[1749830186962,7.39679579,146.93,146.92,0.04773916]
[1749830187164,4.64449953,146.93,146.92,0.04773916]
[1749830187362,7.39685552,146.93,146.92,0.04773916]
[1749830187563,14.13579796,146.93,146.92,0.04773916]
[1749830187871,14.13659007,146.93,146.92,0.04773916]
[1749830188274,6.8026,146.93,146.92,0.04773916]
[1749830191673,6.8049,146.89,146.82,15.07231359]
[1749830191877,10.55011359,146.91,146.83,38.92]
[1749830192367,10.55011359,146.89,146.83,45.727]
[1749830192568,10.55011359,146.89,146.83,38.92]